fUST/lending_fUST_20241219
["ID","MTS","AMOUNT","RATE_DAILY","PERIOD"]
[345983803,1734597032806,-1185.1878957,0.00021007,2]
[345983820,1734597032968,-3144.61701731,0.00021007,2]
[345983823,1734597032977,-246.0542924,0.00021096,2]
[345983825,1734597032987,-169.198961,0.00021197,2]
[345983827,1734597032996,-169.198961,0.00021303,2]
[345983830,1734597033004,-1768.60924162,0.0002175,2]
[345983833,1734597033015,-300.262,0.0002185,2]
[345983836,1734597033024,-164.0,0.00022,2]
[345983839,1734597033034,-157.7823902,0.00022122,2]
[345983842,1734597033044,-164.0,0.00022192,2]
[345983845,1734597033055,-300.0,0.00022221,2]
[345983848,1734597033064,-300.0,0.00022221,2]
[345983851,1734597033074,-36047.36712505,0.00022222,2]
[345983854,1734597033084,-8195.57244569,0.00022222,3]
[345983856,1734597033093,-153.2604004,0.0002279,2]
[345983858,1734597033103,-181.552527,0.00022866,2]
[345983860,1734597033113,-1000.0,0.00022873,2]
[345983862,1734597033122,-1000.0,0.00022874,2]
[345983864,1734597033131,-2154.0,0.0002289,2]
[345983866,1734597033141,-533.0,0.0002289,2]
[345983868,1734597033150,-2368.0,0.0002289,2]
[345983870,1734597033160,-380.264,0.0002289,2]
[345983872,1734597033170,-167.8708504,0.00022899,2]
[345983874,1734597033180,-167.8708504,0.00022924,2]
[345983876,1734597033189,-549.10085038,0.00022948,2]
[345983878,1734597033199,-167.8708504,0.00022948,2]
[345983880,1734597033209,-168433.13531103,0.00022961,3]
[345983882,1734597033219,-199.16203224,0.00022999,2]
[345983884,1734597033230,-184.74549171,0.00022999,2]
[345983886,1734597033240,-157.7823902,0.00023,2]
[345983888,1734597033249,-500906.48829835,0.00023,2]
[345984625,1734597046616,-180.36532002,0.000217,2]
[345984626,1734597046627,-4950.03140045,0.00023,2]
[345984634,1734597590271,164.380299,0.00013973,2]
[345984636,1734598039101,-354.21139023,0.00021631,2]
[345984637,1734598039124,-128.39673653,0.0002185,2]
[345984640,1734598203158,400.0,0.00022,30]
[345984645,1734598231812,-159.40926347,0.0002185,2]
[345984646,1734598231822,-371.501958,0.00021972,2]
[345984647,1734598231832,-165.0,0.00022,2]
[345984648,1734598231842,-251.686,0.00022875,2]
[345984649,1734598231852,-132.61678443,0.00022973,2]
[345984668,1734598237951,-157.7823902,0.000229,2]
[345984670,1734598237961,-49.95497192,0.00022973,2]
[345984736,1734598285614,2488.58219376,0.00022,60]
[345984737,1734598285637,4.41780624,0.00022,60]
[345984744,1734598505786,164.380299,0.00013973,2]
[345984746,1734599100141,262.49334476,0.000255,120]
[345984747,1734599122675,19032.75513966,0.00017371,2]
[345984748,1734599122712,20000.0,0.00017371,2]
[345984749,1734599122744,20000.0,0.00017371,2]
[345984750,1734599122777,20000.0,0.00017371,2]
[345984751,1734599122809,20000.0,0.00017371,2]
[345984752,1734599122845,20000.0,0.00017371,2]
[345984753,1734599122871,236036.50723519,0.00017371,2]
[345984759,1734599366254,-5006.715654,0.00017371,2]
[345984761,1734599385939,164.380299,0.00013973,2]
[345984762,1734599416681,500.0,0.00022,120]
[345984763,1734599417475,500.0,0.00022,120]
[345984764,1734599418245,500.0,0.00022,120]
[345984765,1734599419013,500.0,0.00022,120]
[345984766,1734599421300,325.28,0.00022,120]
[345984787,1734599435930,-75726.11553146,0.00017371,2]
[345984788,1734599436043,-668666.77572517,0.00017371,2]
[345984793,1734599438037,-25041.04351825,0.00017371,2]
[345984794,1734599438093,-6619.29915374,0.00017371,2]
[345984819,1734599440456,-327.14,0.00017371,2]
[345984826,1734599440511,-10008.15553235,0.00017371,2]
[345984833,1734599440567,-167625.83368083,0.00017371,2]
[345984835,1734599440582,-568.05,0.00017371,2]
[345984853,1734599443031,-5207.41074273,0.00017371,2]
[345984869,1734599447004,-11280.0,0.00017371,2]
[345984870,1734599487062,500.0,0.00022,120]
[345984889,1734600335489,168.462512,0.00013973,2]
[345984893,1734600439125,-926.4151187,0.00016854,2]
[345984894,1734600439149,-300.0,0.00017023,2]
[345984895,1734600439171,-300.0,0.00017023,2]
[345984896,1734600439193,-88.16665745,0.00017199,2]
[345984904,1734600518369,2987.86191505,0.00025,120]
[345984905,1734600518585,3831.53434824,0.00025,120]
[345984909,1734600561086,-50898.7058843,0.00017371,2]
[345984915,1734600632435,-5084.9995,0.00017371,2]
[345984931,1734600640363,-101874.465524,0.00017371,2]
[345984976,1734600646437,-277.59,0.00017371,2]
[345984977,1734600646497,-1215.54980749,0.00017371,2]
[345984987,1734601150580,10000.0,0.0002199,30]
[345984988,1734601161510,10000.0,0.0002199,30]
[345984989,1734601175186,10000.0,0.0002199,30]
[345984990,1734601176784,354.21139023,0.0001808,10]
[345984991,1734601186109,10000.0,0.0002199,30]
[345984992,1734601200022,10000.0,0.0002199,30]
[345984993,1734601209898,10000.0,0.0002199,30]
[345984994,1734601233994,8334.0,0.0002199,30]
[345984995,1734601258589,7000.0,0.0002199,30]
[345984998,1734601333276,168.462512,0.00013973,2]
[345985005,1734601652123,-6036.72377001,0.00017259,2]
[345985052,1734601832619,-670.74708556,0.00017371,2]
[345985053,1734601832712,-7371.35383197,0.00017371,2]
[345985054,1734601832772,-1031.32210047,0.00017371,2]
[345985394,1734601843487,-360.56,0.00017371,2]
[345985403,1734601843564,-5285.98117145,0.00017371,2]
[345986557,1734602388111,168.462512,0.00013973,2]
[345986559,1734602550680,16667.3506167,0.00025,120]
[345986574,1734602955172,-440.404,0.000165,2]
[345986575,1734602955193,-716.9289003,0.00016506,2]
[345986576,1734602955213,-496.7808174,0.00016773,2]
[345986577,1734602955233,-261.850605,0.00016773,2]
[345986578,1734602955256,-300.0,0.00016963,2]
[345986579,1734602955441,-300.0,0.00016963,2]
[345986580,1734602955466,-24900.0,0.00016964,2]
[345986581,1734602955488,-1432.5451163,0.00017075,2]
[345986582,1734603001959,542.0,0.00025,120]
[345986697,1734603043729,-528.46,0.00017075,2]
[345986816,1734603048244,376.7871535,0.0001596,2]
[345986821,1734603480102,172.579008,0.00013973,2]
[345986822,1734603562431,545.921931,0.00015871,2]
[345986837,1734603769354,1000.62,0.00022,30]
[345986841,1734603933149,47883.84,0.00022,30]
[345986843,1734603989902,5583.82024767,0.00015819,2]
[345986844,1734603989941,10320.81160983,0.00015819,2]
[345986846,1734604004815,6712.08029,0.00025,120]
[345986849,1734604028119,-199.94372711,0.000165,2]
[345986852,1734604174085,-239.39827289,0.000165,2]
[345986853,1734604174106,-119.85541303,0.00016681,2]
[345986950,1734604233113,-382.63170639,0.00016681,2]
[345986952,1734604233123,-300.0,0.00016748,2]
[345986953,1734604233132,-516.64196115,0.00016749,2]
[345986955,1734604233144,-292.69787705,0.00016749,2]
[345986957,1734604233154,-10638.37044813,0.00016749,2]
[345986996,1734604238976,-8154.4,0.00016749,2]
[345987016,1734604240895,-4621.89047837,0.00016749,2]
[345987045,1734604243814,-1485.3390735,0.00016749,2]
[345987046,1734604243824,-453.4467455,0.00016781,2]
[345987047,1734604243833,-1554.28479209,0.000168,2]
[345987048,1734604243843,-5620.89555413,0.00016844,2]
[345987049,1734604243851,-1895.6285412,0.000169,2]
[345987050,1734604243864,-5185.390707,0.00016915,2]
[345987051,1734604243873,-161.6490592,0.00017197,2]
[345987052,1734604243883,-300.2,0.0001737,2]
[345987053,1734604243893,-113166.08506178,0.00017371,2]
[345987054,1734604243932,-4590.54002345,0.00017371,2]
[345987086,1734604436323,346.23793875,0.00016162,2]
[345987087,1734604441535,5450.0,0.00016162,2]
[345987092,1734604504384,171.75543,0.00013973,2]
[345987100,1734605242603,540.0,0.00025,120]
[345987114,1734605403814,171.75543,0.00013973,2]
[345987183,1734605432229,-421.075,0.000165,2]
[345987185,1734605432238,-272.960966,0.00016525,2]
[345987187,1734605432248,-383.6297555,0.00016573,2]
[345987189,1734605432258,-300.0,0.00016581,2]
[345987191,1734605432267,-150.91828454,0.00016582,2]
[345987208,1734605438146,-458.93464889,0.00016582,2]
[345987225,1734605439997,-24290.14706657,0.00016582,2]
[345987226,1734605440009,-5620.89555413,0.00017079,2]
[345987227,1734605440021,-1359.99919307,0.00017097,2]
[345987228,1734605440033,-161.6490592,0.00017197,2]
[345987229,1734605440045,-11612.55682128,0.00017336,2]
[345987230,1734605440057,-237.951,0.00017371,2]
[345987231,1734605440070,-30245.46491181,0.00017371,2]
[345987290,1734605443027,-3448.70227282,0.00017371,2]
[345987314,1734605446167,-12130.6577,0.00017371,2]
[345987326,1734605503308,3011.01,0.00025,120]
[345987333,1734606350671,171.75543,0.00013973,2]
[345987390,1734606632314,-419.963,0.000165,2]
[345987392,1734606632324,-272.9609663,0.00016615,2]
[345987394,1734606632333,-326.55914813,0.00016895,2]
[345987399,1734606632365,-77.70909147,0.00016895,2]
[345987408,1734606632375,-300.0,0.00016914,2]
[345987409,1734606632595,-9868.29090853,0.00016915,2]
[345987410,1734606632618,-15031.70909147,0.00016915,2]
[345987411,1734606632628,-8087.17806642,0.00017253,2]
[345987412,1734606632637,-206.65978386,0.0001737,2]
[345987413,1734606632647,-135293.82211639,0.00017371,2]
[345987414,1734606632655,-351.9620625,0.000174,2]
[345987415,1734606632665,-351.9620625,0.000174,2]
[345987416,1734606632674,-300.0000009,0.0001764,2]
[345987417,1734606632684,-213.9640091,0.000177,2]
[345987418,1734606632693,-351.9620625,0.000177,2]
[345987419,1734606632702,-304.8299106,0.000177,2]
[345987420,1734606632711,-351.9620625,0.000177,2]
[345987421,1734606632720,-504.9620625,0.000177,2]
[345987422,1734606632729,-351.9620625,0.000177,2]
[345987423,1734606632744,-153.1872232,0.000177,2]
[345987424,1734606632754,-153.0000001,0.000177,2]
[345987425,1734606632763,-213.9640091,0.000177,2]
[345987426,1734606632772,-1205.48789998,0.000177,2]
[345987427,1734606632783,-351.9620625,0.000178,2]
[345987428,1734606632793,-213.9640091,0.000178,2]
[345987429,1734606632802,-351.9620625,0.000178,2]
[345987430,1734606632812,-351.9620625,0.000178,2]
[345987431,1734606632822,-213.9640091,0.000178,2]
[345987432,1734606632833,-351.9620625,0.000178,2]
[345987433,1734606632842,-351.9620625,0.000178,2]
[345987434,1734606632852,-213.9640091,0.000178,2]
[345987435,1734606632862,-351.9620625,0.00017805,2]
[345987436,1734606632872,-3373.92128161,0.00017814,2]
[345987437,1734606632882,-563.4527715,0.000179,2]
[345987438,1734606632892,-351.9620625,0.000179,2]
[345987439,1734606632901,-351.9620625,0.000179,2]
[345987440,1734606632912,-351.9620625,0.000179,2]
[345987441,1734606632921,-351.9620625,0.000179,2]
[345987442,1734606632931,-351.9620625,0.000179,2]
[345987443,1734606632941,-351.9620625,0.000179,2]
[345987444,1734606632950,-351.9620625,0.000179,2]
[345987445,1734606632959,-351.9620625,0.000179,2]
[345987446,1734606632969,-351.9620625,0.000179,2]
[345987447,1734606632978,-213.9640091,0.000179,2]
[345987448,1734606632987,-351.9620625,0.000179,2]
[345987449,1734606632997,-213.9640091,0.000179,2]
[345987450,1734606633006,-213.9640091,0.000179,2]
[345987451,1734606633016,-351.9620625,0.000179,2]
[345987452,1734606633025,-351.9620625,0.000179,2]
[345987453,1734606633035,-300.0,0.00017999,2]
[345987454,1734606633044,-164.58127328,0.00018,2]
[345987455,1734606633053,-5164.75756255,0.00018,2]
[345987456,1734606633062,-5164.75756255,0.00018,2]
[345987457,1734606633072,-613.36173558,0.00018,2]
[345987458,1734606633084,-176.8,0.00018,2]
[345987459,1734606633094,-153.0,0.0001811,2]
[345987460,1734606633103,-153.2604004,0.0001811,2]
[345987461,1734606633113,-153.0,0.0001811,2]
[345987462,1734606633123,-153.2604004,0.0001811,2]
[345987463,1734606633132,-153.2604004,0.0001811,2]
[345987464,1734606633142,-153.2604004,0.0001811,2]
[345987465,1734606633152,-469.8182561,0.0001811,2]
[345987466,1734606633161,-153.2604004,0.0001811,2]
[345987467,1734606633171,-153.0,0.0001811,2]
[345987468,1734606633181,-153.0,0.0001811,2]
[345987469,1734606633191,-153.0,0.0001811,2]
[345987470,1734606633201,-153.0,0.0001811,2]
[345987471,1734606633210,-153.0,0.0001811,2]
[345987472,1734606633220,-153.0,0.0001811,2]
[345987473,1734606633230,-306.0,0.0001811,2]
[345987474,1734606633239,-153.0,0.0001811,2]
[345987475,1734606633248,-153.0,0.0001811,2]
[345987476,1734606633257,-153.0,0.0001811,2]
[345987477,1734606633267,-765.0,0.00018247,2]
[345987478,1734606633277,-351.9620625,0.00018305,2]
[345987479,1734606633287,-351.9620625,0.00018305,2]
[345987480,1734606633297,-351.9620625,0.00018305,2]
[345987481,1734606633306,-351.9620625,0.00018305,2]
[345987482,1734606633316,-351.9620625,0.00018305,2]
[345987483,1734606633326,-420.0,0.00018605,2]
[345987484,1734606633337,-1205.48789996,0.00018815,2]
[345987485,1734606633347,-169.571947,0.00019178,2]
[345987486,1734606633357,-175.17729,0.00019178,2]
[345987487,1734606633368,-351.798756,0.00019205,2]
[345987488,1734606633378,-415.22494901,0.0001954,2]
[345987489,1734606633388,-330.03596199,0.0001954,2]
[345987490,1734606633398,-167.20425479,0.00019567,2]
[345987491,1734606633407,-501.1719527,0.00019567,2]
[345987492,1734606633416,-161.54801975,0.00019567,2]
[345987493,1734606633427,-155.28382256,0.00019567,2]
[345987494,1734606633437,-500.0,0.00019567,2]
[345987495,1734606633447,-504.48553189,0.00019567,2]
[345987496,1734606633457,-153.0,0.00019613,2]
[345987497,1734606633467,-153.0,0.00019613,2]
[345987498,1734606633476,-153.0,0.00019613,2]
[345987499,1734606633486,-153.0,0.00019613,2]
[345987500,1734606633495,-153.0,0.00019613,2]
[345987501,1734606633505,-153.0,0.00019613,2]
[345987502,1734606633515,-153.0,0.00019613,2]
[345987503,1734606633525,-153.0,0.00019613,2]
[345987504,1734606633535,-153.0,0.00019613,2]
[345987505,1734606633544,-153.0,0.00019613,2]
[345987506,1734606633554,-153.0,0.00019613,2]
[345987507,1734606633564,-153.0,0.00019613,2]
[345987508,1734606633574,-153.0,0.00019613,2]
[345987509,1734606633585,-153.0,0.00019613,2]
[345987510,1734606633595,-153.0,0.00019613,2]
[345987511,1734606633604,-153.0,0.00019613,2]
[345987512,1734606633614,-153.0,0.00019613,2]
[345987513,1734606633623,-153.0,0.00019613,2]
[345987514,1734606633633,-153.0,0.00019613,2]
[345987515,1734606633642,-153.0,0.00019613,2]
[345987516,1734606633651,-153.0,0.00019613,2]
[345987517,1734606633661,-153.0,0.00019613,2]
[345987518,1734606633670,-153.0,0.00019613,2]
[345987519,1734606633680,-153.0,0.00019613,2]
[345987520,1734606633689,-153.0,0.00019613,2]
[345987521,1734606633699,-153.0,0.00019613,2]
[345987522,1734606633708,-153.0,0.00019613,2]
[345987523,1734606633717,-153.0,0.00019613,2]
[345987524,1734606633727,-153.0,0.00019613,2]
[345987525,1734606633739,-153.0,0.00019613,2]
[345987526,1734606633750,-153.0,0.00019613,2]
[345987527,1734606633760,-153.0,0.00019613,2]
[345987528,1734606633769,-153.0,0.00019613,2]
[345987529,1734606633781,-153.0,0.00019613,2]
[345987530,1734606633790,-153.0,0.00019613,2]
[345987531,1734606633799,-153.0,0.00019613,2]
[345987532,1734606633809,-153.0,0.00019613,2]
[345987533,1734606633820,-153.0,0.00019613,2]
[345987534,1734606633829,-153.0,0.00019613,2]
[345987535,1734606633839,-153.0,0.00019613,2]
[345987536,1734606633848,-153.0,0.00019613,2]
[345987537,1734606633858,-153.0,0.00019613,2]
[345987538,1734606633868,-153.0,0.00019613,2]
[345987539,1734606633878,-153.0,0.00019613,2]
[345987540,1734606633887,-153.0,0.00019613,2]
[345987541,1734606633896,-153.0,0.00019613,2]
[345987542,1734606633906,-153.0,0.00019613,2]
[345987543,1734606633915,-153.0,0.00019613,2]
[345987544,1734606633924,-153.0,0.00019613,2]
[345987545,1734606633933,-153.0,0.00019613,2]
[345987546,1734606633942,-153.0,0.00019613,2]
[345987547,1734606633952,-153.0,0.00019613,2]
[345987548,1734606633961,-153.0,0.00019613,2]
[345987549,1734606633970,-153.0,0.00019613,2]
[345987550,1734606633980,-153.0,0.00019613,2]
[345987551,1734606633989,-153.0,0.00019613,2]
[345987552,1734606633998,-153.0,0.00019613,2]
[345987553,1734606634007,-153.0,0.00019613,2]
[345987554,1734606634017,-153.0,0.00019613,2]
[345987555,1734606634026,-153.0,0.00019613,2]
[345987556,1734606634035,-153.0,0.00019613,2]
[345987557,1734606634045,-153.0,0.00019613,2]
[345987558,1734606634054,-151.0,0.00019613,2]
[345987559,1734606634064,-161.402614,0.00019613,2]
[345987560,1734606634073,-151.0,0.00019613,2]
[345987561,1734606634083,-151.0,0.00019613,2]
[345987562,1734606634092,-153.313249,0.00019613,2]
[345987563,1734606634102,-153.19419,0.00019613,2]
[345987564,1734606634111,-190.538,0.00019725,2]
[345987565,1734606634121,-332.96902749,0.000198,2]
[345987566,1734606634130,-5000.0,0.00019881,7]
[345987567,1734606634139,-152.234324,0.00019881,2]
[345987568,1734606634148,-151.0,0.00019881,2]
[345987569,1734606634157,-166.866062,0.00019881,2]
[345987570,1734606634167,-151.0,0.00019881,2]
[345987571,1734606634176,-151.0,0.00019881,2]
[345987572,1734606634186,-151.0,0.00019881,2]
[345987573,1734606634195,-196.403425,0.00019881,2]
[345987574,1734606634205,-1217.83636907,0.00019897,2]
[345987575,1734606634215,-164.08,0.00019903,2]
[345987576,1734606634225,-1205.48789996,0.00019931,2]
[345987577,1734606634234,-151.24057,0.00019945,2]
[345987578,1734606634244,-153.7309094,0.00019945,2]
[345987579,1734606634253,-301.2831022,0.00019945,2]
[345987580,1734606634263,-213.8615731,0.00019945,2]
[345987581,1734606634273,-153.2604004,0.00019945,2]
[345987582,1734606634282,-427.7231462,0.00019945,2]
[345987583,1734606634292,-153.2604004,0.00019945,2]
[345987584,1734606634301,-209.36390335,0.00019997,2]
[345987585,1734606634311,-151.0,0.00019997,2]
[345987586,1734606634320,-151.0,0.00019997,2]
[345987587,1734606634330,-151.0,0.00019997,2]
[345987588,1734606634340,-151.0,0.00019997,2]
[345987589,1734606634350,-151.0,0.00019998,2]
[345987590,1734606634359,-185.373748,0.00019998,2]
[345987591,1734606634369,-151.0,0.00019999,2]
[345987592,1734606634379,-272.129842,0.00019999,2]
[345987593,1734606634389,-8680.0,0.0002,3]
[345987594,1734606634398,-4338.0,0.0002,3]
[345987595,1734606634407,-4338.0,0.0002,3]
[345987596,1734606634417,-4338.0,0.0002,3]
[345987597,1734606634427,-4338.0,0.0002,3]
[345987598,1734606634436,-1088.0,0.0002,3]
[345987599,1734606634445,-1086.0,0.0002,3]
[345987600,1734606634454,-1086.0,0.0002,3]
[345987601,1734606634463,-1086.0,0.0002,3]
[345987602,1734606634472,-1214.51917369,0.0002,3]
[345987603,1734606634482,-1214.51917369,0.0002,3]
[345987604,1734606634491,-1214.51917369,0.0002,3]
[345987605,1734606634500,-150.0,0.0002,2]
[345987606,1734606634509,-560.0,0.0002,3]
[345987607,1734606634519,-558.0,0.0002,3]
[345987608,1734606634528,-558.0,0.0002,3]
[345987609,1734606634537,-558.0,0.0002,3]
[345987610,1734606634546,-150.42362323,0.0002,2]
[345987611,1734606634555,-3861.47001669,0.0002,2]
[345987612,1734606634564,-151.0,0.0002,2]
[345987613,1734606634574,-151.0,0.0002,2]
[345987614,1734606634583,-151.0,0.0002,2]
[345987615,1734606634592,-500.0,0.00020033,2]
[345987616,1734606634601,-203.15877631,0.00020033,2]
[345987617,1734606634610,-275.539506,0.000201,2]
[345987618,1734606634620,-1000.0,0.00020115,2]
[345987619,1734606634630,-500.0,0.00020144,2]
[345987620,1734606634639,-213.9640091,0.00020325,2]
[345987621,1734606634648,-213.9640091,0.00020325,2]
[345987622,1734606634658,-500.0,0.00020344,2]
[345987623,1734606634667,-205.217234,0.00020344,2]
[345987624,1734606634677,-587.0,0.00020466,2]
[345987625,1734606634686,-181.552527,0.00020521,2]
[345987626,1734606634695,-941.68725268,0.00020581,2]
[345987627,1734606634705,-150.0,0.00020635,2]
[345987628,1734606634714,-289.784,0.00020635,2]
[345987629,1734606634723,-150.0,0.00020635,2]
[345987630,1734606634732,-251.686,0.00020635,2]
[345987631,1734606634746,-533.0,0.00020635,2]
[345987632,1734606634755,-2149.0,0.00020635,2]
[345987633,1734606634765,-2428.315,0.00020635,2]
[345987634,1734606634774,-151.0,0.00020635,2]
[345987635,1734606634785,-1217.83636906,0.00020655,2]
[345987636,1734606634794,-1000.0,0.00020692,2]
[345987637,1734606634803,-1000.0,0.00020892,2]
[345987638,1734606634814,-181.552527,0.00020904,2]
[345987639,1734606634824,-3914.89531937,0.00021,5]
[345987640,1734606634834,-250.0,0.00021,2]
[345987641,1734606634843,-1205.48789996,0.00021046,2]
[345987642,1734606634852,-150.0,0.000211,2]
[345987643,1734606634862,-227.249792,0.00021116,2]
[345987644,1734606634871,-1500.0,0.00021116,2]
[345987645,1734606634881,-181.552527,0.00021288,2]
[345987646,1734606634890,-1217.83636906,0.00021414,2]
[345987647,1734606634901,-181.552527,0.00021671,2]
[345987648,1734606634910,-1500.0,0.00021694,2]
[345987649,1734606634920,-153.0,0.00021863,2]
[345987650,1734606634930,-3000.0,0.000219,2]
[345987651,1734606634940,-3000.0,0.0002191,2]
[345987652,1734606634949,-1538.34,0.00021917,2]
[345987653,1734606634959,-151.0,0.00021918,2]
[345987654,1734606634969,-151.0,0.00021918,2]
[345987655,1734606634978,-151.0,0.00021918,2]
[345987656,1734606634988,-151.0,0.00021918,2]
[345987657,1734606634997,-196.0,0.00021918,2]
[345987658,1734606635007,-3000.0,0.0002192,2]
[345987659,1734606635016,-3000.0,0.0002193,2]
[345987660,1734606635026,-3000.0,0.0002194,2]
[345987661,1734606635035,-3000.0,0.0002195,2]
[345987662,1734606635045,-3000.0,0.0002196,2]
[345987663,1734606635055,-3000.0,0.0002197,2]
[345987664,1734606635064,-3000.0,0.0002198,2]
[345987665,1734606635074,-500.0,0.00021989,2]
[345987666,1734606635084,-4633.407833,0.0002199,2]
[345987667,1734606635093,-1000.0,0.00021999,2]
[345987668,1734606635103,-10782.54568911,0.00022,2]
[345987669,1734606635113,-1143.03232607,0.00022,2]
[345987670,1734606635123,-295.0,0.00022,2]
[345987671,1734606635132,-165.479278,0.00022,30]
[345987672,1734606635142,-181.552527,0.00022055,2]
[345987673,1734606635153,-150.0,0.000221,2]
[345987674,1734606635162,-351.9620625,0.00022105,2]
[345987675,1734606635171,-351.9620625,0.00022105,2]
[345987676,1734606635181,-351.9620625,0.00022105,2]
[345987677,1734606635190,-500.0,0.00022126,2]
[345987678,1734606635200,-328.07292369,0.00022137,2]
[345987679,1734606635209,-1205.48789996,0.00022161,2]
[345987680,1734606635218,-1217.83636906,0.00022172,2]
[345987681,1734606635228,-295.0,0.00022192,2]
[345987682,1734606635238,-1018.10978309,0.00022221,2]
[345987683,1734606635248,-248.30537666,0.00022234,2]
[345987684,1734606635258,-500.0,0.00022263,2]
[345987685,1734606635267,-501.92102492,0.00022275,2]
[345987686,1734606635277,-500.0,0.00022275,2]
[345987687,1734606635287,-500.0,0.00022275,2]
[345987688,1734606635297,-502.13983149,0.00022275,2]
[345987689,1734606635307,-160.70982211,0.00022275,2]
[345987690,1734606635316,-500.0,0.000224,2]
[345987691,1734606635326,-2000.0,0.00022414,2]
[345987692,1734606635336,-823.0,0.00022513,2]
[345987693,1734606635346,-520.61625761,0.00022537,2]
[345987694,1734606635355,-1000.0,0.000227,2]
[345987695,1734606635365,-1000.0,0.00022725,2]
[345987696,1734606635374,-1000.0,0.0002273,2]
[345987697,1734606635384,-177.0,0.00022735,2]
[345987698,1734606635393,-177.0,0.00022735,2]
[345987699,1734606635403,-177.0,0.00022735,2]
[345987700,1734606635413,-178.77,0.00022735,2]
[345987701,1734606635423,-1134.13761594,0.00022745,2]
[345987702,1734606635432,-1000.0,0.00022765,2]
[345987703,1734606635441,-1000.0,0.00022768,2]
[345987704,1734606635451,-153.0,0.0002279,2]
[345987705,1734606635460,-320.8731055,0.0002279,2]
[345987706,1734606635470,-206.3524185,0.0002279,2]
[345987707,1734606635480,-151.0,0.000228,7]
[345987708,1734606635489,-1000.0,0.00022807,2]
[345987709,1734606635499,-1000.0,0.00022823,2]
[345987710,1734606635508,-185.0334352,0.00022823,2]
[345987711,1734606635518,-1000.0,0.00022823,2]
[345987712,1734606635528,-1000.0,0.00022888,2]
[345987713,1734606635538,-3002.57661022,0.000229,2]
[345987714,1734606635547,-1000.0,0.00022912,2]
[345987715,1734606635557,-4073.59653895,0.0002293,2]
[345987716,1734606635567,-1217.83636906,0.0002293,2]
[345987717,1734606635576,-150.06,0.00022973,2]
[345987718,1734606635588,-150.06,0.00022973,2]
[345987719,1734606635598,-150.06,0.00022973,2]
[345987720,1734606635608,-153.5352196,0.00022973,2]
[345987721,1734606635618,-152.07141717,0.00022973,2]
[345987722,1734606635627,-2000.0,0.00022992,2]
[345987723,1734606635636,-160.0,0.00022999,2]
[345987724,1734606635645,-498204.73262807,0.00023,2]
[345987725,1734606635655,-3949.55914415,0.00023,2]
[345987726,1734606635665,-2740.0,0.00023,7]
[345987727,1734606635675,-2299.47,0.00023,2]
[345987728,1734606635685,-3000.0,0.00023,2]
[345987729,1734606635694,-7754.659159,0.00023,2]
[345987730,1734606635704,-151.0,0.00023,8]
[345987731,1734606635713,-3000.0,0.0002301,2]
[345987732,1734606635723,-295.0,0.00023014,2]
[345987733,1734606635735,-3000.0,0.0002302,2]
[345987734,1734606635747,-1248.03826669,0.00023027,2]
[345987735,1734606635757,-162.05371698,0.00023028,2]
[345987736,1734606635767,-3052390.44930995,0.00023029,10]
[345987737,1734606635778,-3000.0,0.0002303,2]
[345987738,1734606635788,-160.0,0.00023037,3]
[345987739,1734606635797,-3000.0,0.0002304,2]
[345987740,1734606635807,-500.0,0.00023041,2]